fUSD/lending_fUSD_20250930
["ID","MTS","AMOUNT","RATE_DAILY","PERIOD"]
[388552108,1759240277342,-976.58,0.00019452,2]
[388552109,1759240277352,-2413.69,0.00019452,2]
[388552110,1759240277363,-500.0,0.00019452,2]
[388552111,1759240277373,-500.0,0.00019452,2]
[388552112,1759240277383,-500.0,0.00019452,2]
[388552113,1759240277392,-943.48,0.00019452,2]
[388552114,1759240277402,-500.0,0.00019452,2]
[388552115,1759240277411,-2013.23,0.00019452,2]
[388552116,1759240277420,-1015.57,0.00019452,2]
[388552117,1759240277429,-500.0,0.00019452,2]
[388552118,1759240277439,-500.0,0.00019452,2]
[388552119,1759240277448,-500.0,0.00019452,2]
[388552120,1759240277458,-500.0,0.00019452,2]
[388552121,1759240277468,-500.0,0.00019452,2]
[388552122,1759240277477,-764.73,0.00019452,2]
[388552123,1759240277487,-1232.09,0.00019452,2]
[388552124,1759240277496,-500.0,0.00019452,2]
[388552125,1759240277505,-693.13,0.00019452,2]
[388552126,1759240277514,-500.0,0.00019452,2]
[388552127,1759240277524,-1084.87,0.00019452,2]
[388552128,1759240277533,-585.96,0.00019452,2]
[388552129,1759240277547,-1406.34,0.00019452,2]
[388552130,1759240277557,-500.0,0.00019452,2]
[388552131,1759240277566,-500.0,0.00019452,2]
[388552132,1759240277576,-500.0,0.00019452,2]
[388552133,1759240277586,-818.87,0.00019452,2]
[388552134,1759240277600,-500.0,0.00019452,2]
[388552135,1759240277611,-276.97538313,0.00019452,2]
[388552136,1759240277620,-500.0,0.00019452,2]
[388552137,1759240277629,-1793.65,0.00019452,2]
[388552138,1759240277639,-500.0,0.00019452,2]
[388552139,1759240277648,-1043.03,0.00019452,2]
[388552140,1759240277657,-999.57,0.00019452,2]
[388552141,1759240277666,-500.0,0.00019452,2]
[388552142,1759240277675,-915.43,0.00019452,2]
[388552143,1759240277685,-1611.94,0.00019452,2]
[388552144,1759240277695,-1490.93,0.00019452,2]
[388552145,1759240277704,-702.03,0.00019452,2]
[388552146,1759240277714,-1069.66,0.00019452,2]
[388552147,1759240277723,-679.98,0.00019452,2]
[388552148,1759240277732,-500.0,0.00019452,2]
[388552149,1759240277742,-720.19,0.00019452,2]
[388552150,1759240277752,-500.0,0.00019452,2]
[388552151,1759240277762,-612.97,0.00019452,2]
[388552152,1759240277771,-718.97,0.00019452,2]
[388552153,1759240277781,-500.0,0.00019452,2]
[388552154,1759240277795,-500.0,0.00019452,2]
[388552155,1759240277805,-500.0,0.00019452,2]
[388552156,1759240277815,-549.25,0.00019452,2]
[388552157,1759240277825,-500.0,0.00019452,2]
[388552158,1759240277836,-1031.1,0.00019452,2]
[388552159,1759240277846,-500.0,0.00019452,2]
[388552160,1759240277856,-723.07,0.00019452,2]
[388552161,1759240277866,-500.0,0.00019452,2]
[388552162,1759240277876,-798.07,0.00019452,2]
[388552163,1759240277886,-500.0,0.00019452,2]
[388552164,1759240277895,-500.0,0.00019452,2]
[388552165,1759240277905,-699.79,0.00019452,2]
[388552166,1759240277915,-746.04,0.00019452,2]
[388552167,1759240277924,-534.54,0.00019452,2]
[388552168,1759240277934,-500.0,0.00019452,2]
[388552169,1759240277945,-500.0,0.00019452,2]
[388552170,1759240277954,-500.0,0.00019452,2]
[388552171,1759240277964,-500.0,0.00019452,2]
[388552172,1759240277973,-500.0,0.00019452,2]
[388552173,1759240277983,-500.0,0.00019452,2]
[388552174,1759240277992,-500.0,0.00019452,2]
[388552175,1759240278002,-500.0,0.00019452,2]
[388552176,1759240278011,-1901.3,0.00019452,2]
[388552177,1759240278020,-1901.3,0.00019452,2]
[388552178,1759240278030,-500.0,0.00019452,2]
[388552179,1759240278039,-500.0,0.00019452,2]
[388552180,1759240278052,-996.63,0.00019452,2]
[388552181,1759240278061,-500.0,0.00019452,2]
[388552182,1759240278070,-500.0,0.00019452,2]
[388552183,1759240278080,-500.0,0.00019452,2]
[388552184,1759240278090,-500.0,0.00019452,2]
[388552185,1759240278099,-500.0,0.00019452,2]
[388552186,1759240278109,-500.0,0.00019452,2]
[388552187,1759240278118,-500.0,0.00019452,2]
[388552188,1759240278128,-500.0,0.00019452,2]
[388552189,1759240278138,-500.0,0.00019452,2]
[388552190,1759240278147,-547.29,0.00019452,2]
[388552191,1759240278157,-547.29,0.00019452,2]
[388552192,1759240278167,-500.0,0.00019452,2]
[388552193,1759240278176,-500.0,0.00019452,2]
[388552194,1759240278185,-500.0,0.00019452,2]
[388552195,1759240278195,-500.0,0.00019452,2]
[388552196,1759240278209,-500.0,0.00019452,2]
[388552197,1759240278218,-397.53435876,0.00019452,2]
[388552198,1759240278227,-500.0,0.00019452,2]
[388552199,1759240278237,-500.0,0.00019452,2]
[388552200,1759240278247,-500.0,0.00019452,2]
[388552201,1759240278257,-500.61053029,0.00019452,2]
[388552202,1759240278266,-822.45,0.00019452,2]
[388552203,1759240278276,-822.45,0.00019452,2]
[388552204,1759240278286,-500.0,0.00019452,2]
[388552205,1759240278298,-500.0,0.00019452,2]
[388552206,1759240278307,-500.0,0.00019452,2]
[388552207,1759240278317,-637.08475017,0.00019452,2]
[388552208,1759240278327,-680.9,0.00019452,2]
[388552209,1759240278336,-500.0,0.00019452,2]
[388552210,1759240278345,-673.91,0.00019452,2]
[388552211,1759240278355,-500.0,0.00019452,2]
[388552212,1759240278364,-500.0,0.00019452,2]
[388552213,1759240278374,-500.0,0.00019452,2]
[388552214,1759240278385,-500.0,0.00019452,2]
[388552215,1759240278395,-500.0,0.00019452,2]
[388552216,1759240278405,-1312.12,0.00019452,2]
[388552217,1759240278416,-544.11,0.00019452,2]
[388552218,1759240278427,-500.0,0.00019452,2]
[388552219,1759240278438,-676.58,0.00019452,2]
[388552220,1759240278447,-500.0,0.00019452,2]
[388552221,1759240278456,-500.0,0.00019452,2]
[388552222,1759240278466,-500.0,0.00019452,2]
[388552223,1759240278475,-820.32,0.00019452,2]
[388552224,1759240278484,-500.0,0.00019452,2]
[388552225,1759240278494,-500.0,0.00019452,2]
[388552226,1759240278503,-500.0,0.00019452,2]
[388552227,1759240278514,-500.0,0.00019452,2]
[388552228,1759240278524,-500.0,0.00019452,2]
[388552229,1759240278534,-300.0,0.00019452,2]
[388552230,1759240278546,-527.54,0.00019452,2]
[388552231,1759240278555,-473.84094752,0.00019452,2]
[388552232,1759240278564,-500.0,0.00019452,2]
[388552233,1759240278573,-772.08,0.00019452,2]
[388552234,1759240278583,-985.0,0.00019452,2]
[388552235,1759240278592,-500.0,0.00019452,2]
[388552236,1759240278602,-1196.77,0.00019452,2]
[388552237,1759240278611,-500.0,0.00019452,2]
[388552238,1759240278622,-500.0,0.00019452,2]
[388552239,1759240278631,-531.19471929,0.00019452,2]
[388552240,1759240278641,-1307.17,0.00019452,2]
[388552241,1759240278651,-1307.17,0.00019452,2]
[388552242,1759240278660,-214.30875357,0.00019452,2]
[388552243,1759240278669,-500.0,0.00019452,2]
[388552244,1759240278679,-500.0,0.00019452,2]
[388552245,1759240278688,-502.57831766,0.00019452,2]
[388552246,1759240278697,-646.8,0.00019452,2]
[388552247,1759240278707,-619.85,0.00019452,2]
[388552248,1759240278717,-500.0,0.00019452,2]
[388552249,1759240278726,-500.0,0.00019452,2]
[388552250,1759240278736,-500.0,0.00019452,2]
[388552251,1759240278745,-500.0,0.00019452,2]
[388552252,1759240278755,-500.0,0.00019452,2]
[388552253,1759240278764,-513.17420713,0.00019452,2]
[388552254,1759240278774,-500.0,0.00019452,2]
[388552255,1759240278784,-500.0,0.00019452,2]
[388552256,1759240278795,-500.0,0.00019452,2]
[388552257,1759240278804,-500.0,0.00019452,2]
[388552258,1759240278814,-500.0,0.00019452,2]
[388552259,1759240278825,-500.0,0.00019452,2]
[388552260,1759240278835,-551.65,0.00019452,2]
[388552261,1759240278844,-500.0,0.00019452,2]
[388552262,1759240278853,-500.0,0.00019452,2]
[388552263,1759240278863,-500.0,0.00019452,2]
[388552264,1759240278872,-2533.5,0.00019452,2]
[388552265,1759240278882,-287.12270629,0.00019452,2]
[388552266,1759240278891,-500.0,0.00019452,2]
[388552267,1759240278901,-1570.81,0.00019452,2]
[388552268,1759240278910,-500.0,0.00019452,2]
[388552269,1759240278919,-342.23480693,0.00019452,2]
[388552270,1759240278929,-500.0,0.00019452,2]
[388552271,1759240278940,-500.0,0.00019452,2]
[388552272,1759240278949,-500.0,0.00019452,2]
[388552273,1759240278959,-500.0,0.00019452,2]
[388552274,1759240278968,-500.0,0.00019452,2]
[388552275,1759240278977,-500.0,0.00019452,2]
[388552276,1759240278987,-500.0,0.00019452,2]
[388552277,1759240278996,-500.0,0.00019452,2]
[388552278,1759240279005,-951.58,0.00019452,2]
[388552279,1759240279015,-1000.83,0.00019452,2]
[388552280,1759240279025,-500.0,0.00019452,2]
[388552281,1759240279034,-500.0,0.00019452,2]
[388552282,1759240279044,-500.0,0.00019452,2]
[388552283,1759240279053,-524.83797299,0.00019452,2]
[388552284,1759240279062,-500.0,0.00019452,2]
[388552285,1759240279071,-500.0,0.00019452,2]
[388552286,1759240279080,-500.0,0.00019452,2]
[388552287,1759240279090,-500.0,0.00019452,2]
[388552288,1759240279099,-980.47,0.00019452,2]
[388552289,1759240279108,-500.0,0.00019452,2]
[388552290,1759240279117,-500.0,0.00019452,2]
[388552291,1759240279127,-500.0,0.00019452,2]
[388552292,1759240279137,-500.0,0.00019452,2]
[388552293,1759240279146,-500.0,0.00019452,2]
[388552294,1759240279156,-620.85,0.00019452,2]
[388552295,1759240279166,-596.97,0.00019452,2]
[388552296,1759240279175,-945.04,0.00019452,2]
[388552297,1759240279185,-500.0,0.00019452,2]
[388552298,1759240279195,-500.0,0.00019452,2]
[388552299,1759240279209,-500.0,0.00019452,2]
[388552300,1759240279219,-1506.46,0.00019452,2]
[388552301,1759240279229,-1813.32,0.00019452,2]
[388552302,1759240279238,-500.0,0.00019452,2]
[388552303,1759240279248,-500.0,0.00019452,2]
[388552304,1759240279257,-500.0,0.00019452,2]
[388552305,1759240279267,-554.41,0.00019452,2]
[388552306,1759240279276,-500.0,0.00019452,2]
[388552307,1759240279286,-500.0,0.00019452,2]
[388552308,1759240279300,-500.0,0.00019452,2]
[388552309,1759240279309,-500.0,0.00019452,2]
[388552310,1759240279320,-151.0,0.00019452,2]
[388552311,1759240279330,-151.0,0.00019452,2]
[388552312,1759240279340,-500.0,0.00019452,2]
[388552313,1759240279349,-1125.41,0.00019452,2]
[388552314,1759240279359,-151.0,0.00019452,2]
[388552315,1759240279369,-500.0,0.00019452,2]
[388552316,1759240279380,-151.0,0.00019452,2]
[388552317,1759240279389,-500.0,0.00019452,2]
[388552318,1759240279751,-500.0,0.00019452,2]
[388552319,1759240279762,-609.64600168,0.00019452,2]
[388552320,1759240279772,-819.5,0.00019452,2]
[388552321,1759240279782,-2802.89,0.00019452,2]
[388552322,1759240279793,-500.0,0.00019452,2]
[388552323,1759240279803,-633.69830761,0.00019452,2]
[388552324,1759240279816,-1040.32,0.00019452,2]
[388552325,1759240279826,-1580.78,0.00019452,2]
[388552326,1759240279836,-500.0,0.00019452,2]
[388552327,1759240279845,-500.0,0.00019452,2]
[388552328,1759240279855,-500.0,0.00019452,2]
[388552329,1759240279865,-500.0,0.00019452,2]
[388552330,1759240279874,-500.0,0.00019452,2]
[388552331,1759240279884,-151.0,0.00019452,2]
[388552332,1759240279894,-151.0,0.00019452,2]
[388552333,1759240279903,-1936.29,0.00019452,2]
[388552334,1759240279912,-500.0,0.00019452,2]
[388552335,1759240279922,-151.0,0.00019452,2]
[388552336,1759240279932,-151.0,0.00019452,2]
[388552337,1759240279941,-762.14,0.00019452,2]
[388552338,1759240279951,-500.0,0.00019452,2]
[388552339,1759240279960,-517.44,0.00019452,2]
[388552340,1759240279970,-804.01,0.00019452,2]
[388552341,1759240279980,-500.0,0.00019452,2]
[388552342,1759240279991,-151.0,0.00019452,2]
[388552343,1759240280000,-151.0,0.00019452,2]
[388552344,1759240280010,-500.0,0.00019452,2]
[388552345,1759240280020,-151.0,0.00019452,2]
[388552346,1759240280030,-862.02,0.00019452,2]
[388552347,1759240280040,-500.0,0.00019452,2]
[388552348,1759240280053,-500.0,0.00019452,2]
[388552349,1759240280064,-734.2,0.00019452,2]
[388552350,1759240280074,-2536.15,0.00019452,2]
[388552351,1759240280084,-866.59,0.00019452,2]
[388552352,1759240280094,-835.4,0.00019452,2]
[388552353,1759240280103,-835.4,0.00019452,2]
[388552354,1759240280113,-151.0,0.00019452,2]
[388552355,1759240280122,-718.03,0.00019452,2]
[388552356,1759240280132,-151.627298,0.00019452,2]
[388552357,1759240280142,-1365.92,0.00019452,2]
[388552358,1759240280152,-500.0,0.00019452,2]
[388552359,1759240280162,-819.73,0.00019452,2]
[388552360,1759240280172,-500.0,0.00019452,2]
[388552361,1759240280182,-500.0,0.00019452,2]
[388552362,1759240280191,-906.15,0.00019452,2]
[388552363,1759240280203,-716.83,0.00019452,2]
[388552364,1759240280213,-500.0,0.00019452,2]
[388552365,1759240280223,-500.0,0.00019452,2]
[388552366,1759240280232,-176.55886425,0.00019452,2]
[388552367,1759240280242,-500.0,0.00019452,2]
[388552368,1759240280252,-1159.21,0.00019452,2]
[388552369,1759240280262,-500.0,0.00019452,2]
[388552370,1759240280273,-500.0,0.00019452,2]
[388552371,1759240280283,-500.0,0.00019452,2]
[388552372,1759240280295,-500.0,0.00019452,2]
[388552373,1759240280305,-300.0,0.00019452,2]
[388552374,1759240280315,-500.0,0.00019452,2]
[388552375,1759240280325,-500.0,0.00019452,2]
[388552376,1759240280335,-500.0,0.00019452,2]
[388552377,1759240280344,-745.58,0.00019452,2]
[388552378,1759240280354,-500.0,0.00019452,2]
[388552379,1759240280375,-500.0,0.00019452,2]
[388552380,1759240280385,-1006.35,0.00019452,2]
[388552381,1759240280395,-500.0,0.00019452,2]
[388552382,1759240280406,-500.0,0.00019452,2]
[388552383,1759240280416,-1193.9,0.00019452,2]
[388552384,1759240280429,-151.0,0.00019452,2]
[388552385,1759240280439,-500.0,0.00019452,2]
[388552386,1759240280449,-151.0,0.00019452,2]
[388552387,1759240280459,-500.0,0.00019452,2]
[388552388,1759240280470,-843.81,0.00019452,2]
[388552389,1759240280480,-151.0,0.00019452,2]
[388552390,1759240280490,-151.0,0.00019452,2]
[388552391,1759240280500,-233.704171,0.00019452,2]
[388552392,1759240280510,-500.0,0.00019452,2]
[388552393,1759240280520,-500.0,0.00019452,2]
[388552394,1759240280529,-500.0,0.00019452,2]
[388552395,1759240280540,-500.0,0.00019452,2]
[388552396,1759240280554,-332.79165955,0.00019452,2]
[388552397,1759240280565,-500.0,0.00019452,2]
[388552398,1759240280575,-500.0,0.00019452,2]
[388552399,1759240280585,-787.49,0.00019452,2]
[388552400,1759240280595,-1328.48,0.00019452,2]
[388552401,1759240280606,-500.0,0.00019452,2]
[388552402,1759240280616,-595.3,0.00019452,2]
[388552403,1759240280626,-561.38,0.00019452,2]
[388552404,1759240280637,-500.0,0.00019452,2]
[388552405,1759240280647,-500.0,0.00019452,2]
[388552406,1759240280657,-2987.59,0.00019452,2]
[388552407,1759240280669,-612.1,0.00019452,2]
[388552408,1759240280679,-500.0,0.00019452,2]
[388552409,1759240280690,-181.43091277,0.00019452,2]
[388552410,1759240280701,-538.01,0.00019452,2]
[388552411,1759240280711,-500.0,0.00019452,2]
[388552412,1759240280722,-500.0,0.00019452,2]
[388552413,1759240280732,-500.0,0.00019452,2]
[388552414,1759240280742,-528.03,0.00019452,2]
[388552415,1759240280757,-221.28591943,0.00019452,2]
[388552416,1759240280768,-705.1,0.00019452,2]
[388552417,1759240280778,-500.0,0.00019452,2]
[388552418,1759240280789,-500.0,0.00019452,2]
[388552419,1759240280801,-500.0,0.00019452,2]
[388552420,1759240280812,-469.22086321,0.00019452,2]
[388552421,1759240280822,-751.61,0.00019452,2]
[388552422,1759240280832,-519.96,0.00019452,2]
[388552423,1759240280843,-500.0,0.00019452,2]
[388552424,1759240280853,-521.64,0.00019452,2]
[388552425,1759240280863,-500.0,0.00019452,2]
[388552426,1759240280874,-500.0,0.00019452,2]
[388552427,1759240280884,-500.0,0.00019452,2]
[388552428,1759240280895,-662.66,0.00019452,2]
[388552429,1759240280906,-500.0,0.00019452,2]
[388552430,1759240280916,-500.0,0.00019452,2]
[388552431,1759240280927,-500.0,0.00019452,2]
[388552432,1759240280936,-500.0,0.00019452,2]
[388552433,1759240280946,-1191.76,0.00019452,2]
[388552434,1759240280957,-500.0,0.00019452,2]
[388552435,1759240280967,-830.02,0.00019452,2]
[388552436,1759240280977,-500.0,0.00019452,2]
[388552437,1759240280988,-500.0,0.00019452,2]
[388552438,1759240280998,-1407.81,0.00019452,2]
[388552439,1759240281008,-500.0,0.00019452,2]
[388552440,1759240281017,-195.43829882,0.00019452,2]
[388552441,1759240281027,-1632.14,0.00019452,2]
[388552442,1759240281037,-2537.43,0.00019452,2]
[388552443,1759240281048,-2431.7,0.00019452,2]
[388552444,1759240281058,-500.0,0.00019452,2]
[388552445,1759240281068,-500.0,0.00019452,2]
[388552446,1759240281079,-500.0,0.00019452,2]
[388552447,1759240281088,-500.0,0.00019452,2]
[388552448,1759240281099,-607.0209675,0.00019452,2]
[388552449,1759240281108,-500.0,0.00019452,2]
[388552450,1759240281119,-500.0,0.00019452,2]
[388552451,1759240281129,-1277.63,0.00019452,2]
[388552452,1759240281139,-696.93,0.00019452,2]
[388552453,1759240281154,-500.0,0.00019452,2]
[388552454,1759240281164,-890.61,0.00019452,2]
[388552455,1759240281175,-500.0,0.00019452,2]
[388552456,1759240281185,-500.0,0.00019452,2]
[388552457,1759240281195,-617.36,0.00019452,2]
[388552458,1759240281212,-500.0,0.00019452,2]
[388552459,1759240281222,-500.0,0.00019452,2]
[388552460,1759240281233,-341.01204439,0.00019452,2]
[388552461,1759240281243,-500.0,0.00019452,2]
[388552462,1759240281254,-500.0,0.00019452,2]
[388552463,1759240281265,-257.59452018,0.00019452,2]
[388552464,1759240281276,-500.0,0.00019452,2]
[388552465,1759240281286,-500.0,0.00019452,2]
[388552466,1759240281298,-500.0,0.00019452,2]
[388552467,1759240281308,-1546.9,0.00019452,2]
[388552468,1759240281319,-500.0,0.00019452,2]
[388552469,1759240281328,-500.0,0.00019452,2]
[388552470,1759240281339,-500.0,0.00019452,2]
[388552471,1759240281349,-767.27,0.00019452,2]
[388552472,1759240281359,-500.0,0.00019452,2]
[388552473,1759240281369,-3185.15,0.00019452,2]
[388552474,1759240281379,-3256.72,0.00019452,2]
[388552475,1759240281389,-1019.43,0.00019452,2]
[388552476,1759240281399,-628.31,0.00019452,2]
[388552477,1759240281410,-500.0,0.00019452,2]
[388552478,1759240281421,-500.0,0.00019452,2]
[388552479,1759240281431,-300.82285741,0.00019452,2]
[388552480,1759240281442,-599.93,0.00019452,2]
[388552481,1759240281452,-500.0,0.00019452,2]
[388552482,1759240281462,-573.86,0.00019452,2]
[388552483,1759240281472,-500.0,0.00019452,2]
[388552484,1759240281482,-500.0,0.00019452,2]
[388552485,1759240281492,-500.0,0.00019452,2]
[388552486,1759240281502,-602.3095886,0.00019452,2]
[388552487,1759240281513,-500.0,0.00019452,2]
[388552488,1759240281523,-511.00185349,0.00019452,2]
[388552489,1759240281534,-500.0,0.00019452,2]
[388552490,1759240281550,-500.0,0.00019452,2]
[388552491,1759240281561,-500.0,0.00019452,2]
[388552492,1759240281571,-500.0,0.00019452,2]
[388552493,1759240281581,-500.0,0.00019452,2]
[388552494,1759240281592,-500.0,0.00019452,2]
[388552495,1759240281602,-1643.07,0.00019452,2]
[388552496,1759240281613,-1654.09,0.00019452,2]
[388552497,1759240281623,-1125.03,0.00019452,2]
[388552498,1759240281633,-500.0,0.00019452,2]
[388552499,1759240281643,-500.0,0.00019452,2]
[388552500,1759240281654,-500.0,0.00019452,2]
[388552501,1759240281665,-500.0,0.00019452,2]
[388552502,1759240281675,-500.0,0.00019452,2]
[388552503,1759240281685,-570.69,0.00019452,2]
[388552504,1759240281696,-500.0,0.00019452,2]
[388552505,1759240281706,-500.0,0.00019452,2]
[388552506,1759240281716,-151.0,0.00019452,2]
[388552507,1759240281726,-780.09,0.00019452,2]
[388552508,1759240281736,-645.06,0.00019452,2]
[388552509,1759240281746,-2221.26,0.00019452,2]
[388552510,1759240281756,-1429.66,0.00019452,2]
[388552511,1759240281766,-151.0,0.00019452,2]
[388552512,1759240281776,-151.0,0.00019452,2]
[388552513,1759240281786,-1147.27,0.00019452,2]
[388552514,1759240281798,-500.0,0.00019452,2]
[388552515,1759240281808,-184.593684,0.00019452,2]
[388552516,1759240281818,-500.0,0.00019452,2]
[388552517,1759240281828,-500.0,0.00019452,2]
[388552518,1759240281838,-500.0,0.00019452,2]
[388552519,1759240281848,-677.04,0.00019452,2]
[388552520,1759240281858,-1422.36,0.00019452,2]
[388552521,1759240281868,-500.0,0.00019452,2]
[388552522,1759240281878,-2005.31,0.00019452,2]
[388552523,1759240281889,-861.63,0.00019452,2]
[388552524,1759240281899,-825.73,0.00019452,2]
[388552525,1759240281908,-980.73,0.00019452,2]
[388552526,1759240281918,-500.0,0.00019452,2]
[388552527,1759240281928,-500.0,0.00019452,2]
[388552528,1759240281941,-1146.39,0.00019452,2]
[388552529,1759240281951,-1482.77,0.00019452,2]
[388552530,1759240281960,-503.95,0.00019452,2]
[388552531,1759240281970,-500.0,0.00019452,2]
[388552532,1759240281980,-500.0,0.00019452,2]
[388552533,1759240281990,-500.0,0.00019452,2]
[388552534,1759240282000,-500.0,0.00019452,2]
[388552535,1759240282011,-500.0,0.00019452,2]
[388552536,1759240282021,-500.0,0.00019452,2]
[388552537,1759240282031,-500.0,0.00019452,2]
[388552538,1759240282041,-500.0,0.00019452,2]
[388552539,1759240282054,-500.0,0.00019452,2]
[388552540,1759240282064,-500.0,0.00019452,2]
[388552541,1759240282074,-1642.32,0.00019452,2]
[388552542,1759240282084,-555.2,0.00019452,2]
[388552543,1759240282094,-500.0,0.00019452,2]
[388552544,1759240282104,-500.0,0.00019452,2]
[388552545,1759240282113,-519.38,0.00019452,2]
[388552546,1759240282123,-500.0,0.00019452,2]
[388552547,1759240282132,-502.53,0.00019452,2]
[388552548,1759240282142,-151.0,0.00019452,2]
[388552549,1759240282152,-153.234815,0.00019452,2]
[388552550,1759240282164,-500.0,0.00019452,2]
[388552551,1759240282174,-500.0,0.00019452,2]
[388552552,1759240282183,-500.0,0.00019452,2]
[388552553,1759240282193,-500.0,0.00019452,2]
[388552554,1759240282205,-1407.34,0.00019452,2]
[388552555,1759240282216,-1006.6,0.00019452,2]
[388552556,1759240282225,-500.0,0.00019452,2]
[388552557,1759240282235,-519.81405479,0.00019452,2]
[388552558,1759240282247,-500.0,0.00019452,2]
[388552559,1759240282257,-500.0,0.00019452,2]
[388552560,1759240282267,-984.15,0.00019452,2]
[388552561,1759240282560,-500.0,0.00019452,2]
[388552562,1759240282571,-500.0,0.00019452,2]
[388552563,1759240282581,-500.0,0.00019452,2]
[388552564,1759240282591,-151.0,0.00019452,2]
[388552565,1759240282600,-151.0,0.00019452,2]
[388552566,1759240282609,-500.0,0.00019452,2]
[388552567,1759240282619,-500.0,0.00019452,2]
[388552568,1759240282628,-500.0,0.00019452,2]
[388552569,1759240282637,-500.0,0.00019452,2]
[388552570,1759240282646,-500.0,0.00019452,2]
[388552571,1759240282656,-500.0,0.00019452,2]
[388552572,1759240282664,-500.0,0.00019452,2]
[388552573,1759240282674,-500.0,0.00019452,2]
[388552574,1759240282683,-500.0,0.00019452,2]
[388552575,1759240282692,-151.0,0.00019452,2]
[388552576,1759240282702,-243.987485,0.00019452,2]
[388552577,1759240282711,-500.0,0.00019452,2]
[388552578,1759240282721,-500.0,0.00019452,2]
[388552579,1759240282730,-500.0,0.00019452,2]
[388552580,1759240282739,-500.0,0.00019452,2]
[388552581,1759240282748,-500.0,0.00019452,2]
[388552582,1759240282758,-500.0,0.00019452,2]
[388552583,1759240282767,-500.0,0.00019452,2]
[388552584,1759240282776,-1977.24,0.00019452,2]
[388552585,1759240282785,-500.0,0.00019452,2]
[388552586,1759240282796,-500.0,0.00019452,2]
[388552587,1759240282806,-500.0,0.00019452,2]
[388552588,1759240282815,-517.59,0.00019452,2]
[388552589,1759240282825,-2503.43,0.00019452,2]
[388552590,1759240282835,-2399.12,0.00019452,2]
[388552591,1759240282844,-500.0,0.00019452,2]
[388552592,1759240282854,-1137.08,0.00019452,2]
[388552593,1759240282863,-1760.32,0.00019452,2]
[388552594,1759240282873,-500.0,0.00019452,2]
[388552595,1759240282882,-751.48,0.00019452,2]
[388552596,1759240282891,-626.59,0.00019452,2]
[388552597,1759240282900,-500.0,0.00019452,2]
[388552598,1759240282910,-906.34,0.00019452,2]
[388552599,1759240282919,-1693.84,0.00019452,2]
[388552600,1759240282928,-900.53,0.00019452,2]
[388552601,1759240282937,-853.5,0.00019452,2]
[388552602,1759240282946,-500.0,0.00019452,2]
[388552603,1759240282956,-500.0,0.00019452,2]
[388552604,1759240282965,-500.0,0.00019452,2]
[388552605,1759240282974,-332.19685212,0.00019452,2]
[388552606,1759240282983,-2800.4,0.00019452,2]
[388552607,1759240282992,-3710.9,0.00019452,2]